[Event "Titled Tuesday Blitz November 08 Late 2022"]
[White "Aung Thant Zin"]
[Black "Gasparyan, David"]
[WhiteFideId "13000063"]
[BlackFideId "13311980"]
[WhiteElo "2278"]
[BlackElo "2325"]
[Result "1-0"]
[Round "03"]
[TimeControl "180+1"]
[Date "2022.11.09"]
[WhiteClock "0:00:52"]
[BlackClock "0:00:03"]

1. e4 {[%clk 0:02:55]}  b6 {[%clk 0:02:55]} 2. d4 {[%clk 0:02:54]}  Bb7 {[%clk 0:02:55]} 3. Nc3 {[%clk 0:02:55]}  e6 {[%clk 0:02:55]} 4. Nf3 {[%clk 0:02:55]}  d5 {[%clk 0:02:48]} 5. exd5 {[%clk 0:02:52]}  exd5 {[%clk 0:02:48]} 6. Bd3 {[%clk 0:02:52]}  Nf6 {[%clk 0:02:47]} 7. O-O {[%clk 0:02:51]}  Be7 {[%clk 0:02:47]} 8. h3 {[%clk 0:02:49]}  O-O {[%clk 0:02:46]} 9. Bf4 {[%clk 0:02:48]}  Nbd7 {[%clk 0:02:40]} 10. Re1 {[%clk 0:02:48]}  c5 {[%clk 0:02:33]} 11. Nb5 {[%clk 0:02:38]}  Ne4 {[%clk 0:02:13]} 12. c4 {[%clk 0:02:28]}  Ndf6 {[%clk 0:02:07]} 13. Nc7 {[%clk 0:02:19]}  Rc8 {[%clk 0:02:05]} 14. Nxd5 {[%clk 0:02:15]}  Bxd5 {[%clk 0:02:00]} 15. cxd5 {[%clk 0:02:14]}  Qxd5 {[%clk 0:02:00]} 16. Qe2 {[%clk 0:02:01]}  cxd4 {[%clk 0:00:29]} 17. Bxe4 {[%clk 0:01:58]}  Nxe4 {[%clk 0:00:26]} 18. Qxe4 {[%clk 0:01:58]}  Qxe4 {[%clk 0:00:26]} 19. Rxe4 {[%clk 0:01:58]}  Bf6 {[%clk 0:00:23]} 20. Rd1 {[%clk 0:01:48]}  Rfd8 {[%clk 0:00:21]} 21. Be5 {[%clk 0:01:40]}  d3 {[%clk 0:00:14]} 22. Bxf6 {[%clk 0:01:39]}  gxf6 {[%clk 0:00:14]} 23. b4 {[%clk 0:01:32]}  Rc2 {[%clk 0:00:14]} 24. Rd2 {[%clk 0:01:31]}  Rc1+ {[%clk 0:00:12]} 25. Kh2 {[%clk 0:01:29]}  Rc3 {[%clk 0:00:07]} 26. Re3 {[%clk 0:01:27]}  Rc4 {[%clk 0:00:04]} 27. Rexd3 {[%clk 0:01:27]}  Rxd3 {[%clk 0:00:05]} 28. Rxd3 {[%clk 0:01:27]}  Rxb4 {[%clk 0:00:06]} 29. Nd4 {[%clk 0:01:25]}  Rb2 {[%clk 0:00:05]} 30. Nf5 {[%clk 0:01:24]}  h5 {[%clk 0:00:05]} 31. a3 {[%clk 0:01:21]}  Rxf2 {[%clk 0:00:04]} 32. Rg3+ {[%clk 0:01:19]}  Kf8 {[%clk 0:00:03]} 33. Nd6 {[%clk 0:01:17]}  Rd2 {[%clk 0:00:03]} 34. Ne4 {[%clk 0:01:16]}  Rd4 {[%clk 0:00:01]} 35. Nxf6 {[%clk 0:01:16]}  Rd6 {[%clk 0:00:02]} 36. Nxh5 {[%clk 0:01:16]}  Ke7 {[%clk 0:00:03]} 37. Nf4 {[%clk 0:01:15]}  Kd7 {[%clk 0:00:04]} 38. Nd3 {[%clk 0:01:15]}  Rd4 {[%clk 0:00:04]} 39. Ne5+ {[%clk 0:01:14]}  Ke6 {[%clk 0:00:05]} 40. Ng4 {[%clk 0:01:13]}  Ra4 {[%clk 0:00:05]} 41. Re3+ {[%clk 0:01:13]}  Kd7 {[%clk 0:00:06]} 42. Kg3 {[%clk 0:01:12]}  f5 {[%clk 0:00:06]} 43. Ne5+ {[%clk 0:01:10]}  Kc7 {[%clk 0:00:06]} 44. Rc3+ {[%clk 0:01:09]}  Kd6 {[%clk 0:00:06]} 45. Nf3 {[%clk 0:01:09]}  Ke7 {[%clk 0:00:06]} 46. h4 {[%clk 0:01:09]}  Kf6 {[%clk 0:00:06]} 47. Kh3 {[%clk 0:01:09]}  b5 {[%clk 0:00:05]} 48. Rb3 {[%clk 0:01:07]}  a6 {[%clk 0:00:05]} 49. Nd2 {[%clk 0:01:05]}  Rd4 {[%clk 0:00:05]} 50. Nf3 {[%clk 0:01:05]}  Rc4 {[%clk 0:00:06]} 51. g3 {[%clk 0:01:04]}  Re4 {[%clk 0:00:05]} 52. Ng5 {[%clk 0:01:04]}  Rc4 {[%clk 0:00:04]} 53. Rf3 {[%clk 0:01:03]}  a5 {[%clk 0:00:04]} 54. Kg2 {[%clk 0:01:02]}  a4 {[%clk 0:00:03]} 55. Rd3 {[%clk 0:01:00]}  b4 {[%clk 0:00:03]} 56. axb4 {[%clk 0:00:59]}  Rxb4 {[%clk 0:00:04]} 57. Ra3 {[%clk 0:00:59]}  Rb2+ {[%clk 0:00:04]} 58. Kh3 {[%clk 0:00:59]}  Rb4 {[%clk 0:00:04]} 59. Nf3 {[%clk 0:00:58]}  Rc4 {[%clk 0:00:05]} 60. Ne1 {[%clk 0:00:57]}  Rd4 {[%clk 0:00:05]} 61. Nc2 {[%clk 0:00:57]}  Re4 {[%clk 0:00:05]} 62. Rc3 {[%clk 0:00:56]}  Ke5 {[%clk 0:00:04]} 63. Rc5+ {[%clk 0:00:54]}  Kf6 {[%clk 0:00:04]} 64. Ra5 {[%clk 0:00:54]}  Rc4 {[%clk 0:00:04]} 65. Ne3 {[%clk 0:00:54]}  Rd4 {[%clk 0:00:04]} 66. Nxf5 {[%clk 0:00:54]}  a3 {[%clk 0:00:03]} 67. Nxd4 {[%clk 0:00:52]} 1-0


[Site "https://www.chess.com"]

[Event "Titled Tuesday Blitz November 08 Late 2022"]
[White "Banzea, Alexandru-Bogdan"]
[Black "Milikow, Yoav"]
[WhiteFideId "1232622"]
[BlackFideId "2822237"]
[WhiteElo "2294"]
[BlackElo "2341"]
[Result "0-1"]
[Round "03"]
[TimeControl "180+1"]
[Date "2022.11.08"]
[WhiteClock "0:00:05"]
[BlackClock "0:00:58"]

1. d4 {[%clk 0:03:00]}  d5 {[%clk 0:02:58]} 2. Nf3 {[%clk 0:03:00]}  Nf6 {[%clk 0:02:56]} 3. Bf4 {[%clk 0:03:01]}  e6 {[%clk 0:02:56]} 4. e3 {[%clk 0:03:01]}  c5 {[%clk 0:02:57]} 5. Nbd2 {[%clk 0:03:02]}  Nc6 {[%clk 0:02:57]} 6. c3 {[%clk 0:03:02]}  cxd4 {[%clk 0:02:57]} 7. exd4 {[%clk 0:03:03]}  Nh5 {[%clk 0:02:55]} 8. Be3 {[%clk 0:02:58]}  Bd6 {[%clk 0:02:55]} 9. Ne5 {[%clk 0:02:58]}  g6 {[%clk 0:02:55]} 10. Nd3 {[%clk 0:02:59]}  O-O {[%clk 0:02:53]} 11. g3 {[%clk 0:02:48]}  b6 {[%clk 0:02:52]} 12. Bg2 {[%clk 0:02:21]}  Ba6 {[%clk 0:02:49]} 13. Nf3 {[%clk 0:02:16]}  Na5 {[%clk 0:02:41]} 14. O-O {[%clk 0:02:14]}  Nc4 {[%clk 0:02:41]} 15. Bh6 {[%clk 0:02:07]}  Ng7 {[%clk 0:02:40]} 16. Re1 {[%clk 0:02:01]}  Re8 {[%clk 0:02:39]} 17. Rb1 {[%clk 0:01:39]}  Nf5 {[%clk 0:02:35]} 18. Bf4 {[%clk 0:01:39]}  Bf8 {[%clk 0:02:31]} 19. Nfe5 {[%clk 0:01:32]}  Ncd6 {[%clk 0:02:20]} 20. h4 {[%clk 0:01:27]}  h5 {[%clk 0:02:18]} 21. Qa4 {[%clk 0:01:04]}  Bb5 {[%clk 0:02:16]} 22. Qd1 {[%clk 0:01:01]}  Rc8 {[%clk 0:02:14]} 23. Rc1 {[%clk 0:00:42]}  a5 {[%clk 0:02:03]} 24. b3 {[%clk 0:00:39]}  Ba6 {[%clk 0:01:52]} 25. Nb2 {[%clk 0:00:38]}  Nb5 {[%clk 0:01:46]} 26. Qd2 {[%clk 0:00:38]}  Rxc3 {[%clk 0:01:29]} 27. Rxc3 {[%clk 0:00:35]}  Nxc3 {[%clk 0:01:30]} 28. Nc6 {[%clk 0:00:10]}  Qa8 {[%clk 0:01:13]} 29. Qxc3 {[%clk 0:00:09]}  Rc8 {[%clk 0:01:14]} 30. Rc1 {[%clk 0:00:09]}  Bb7 {[%clk 0:01:14]} 31. Qd2 {[%clk 0:00:07]}  Rxc6 {[%clk 0:01:13]} 32. Rxc6 {[%clk 0:00:06]}  Bxc6 {[%clk 0:01:13]} 33. Be5 {[%clk 0:00:07]}  Qd8 {[%clk 0:01:11]} 34. Bh3 {[%clk 0:00:07]}  Nd6 {[%clk 0:01:10]} 35. f3 {[%clk 0:00:06]}  Nb5 {[%clk 0:01:05]} 36. Nd3 {[%clk 0:00:07]}  Qe7 {[%clk 0:01:01]} 37. Qf4 {[%clk 0:00:06]}  Nc3 {[%clk 0:00:58]} 38. Bf6 {[%clk 0:00:05]}  Ne2+ {[%clk 0:00:57]} 39. Kf2 {[%clk 0:00:05]}  Nxf4 {[%clk 0:00:58]} 0-1


[Site "https://www.chess.com"]

[Event "Titled Tuesday Blitz November 08 Late 2022"]
[White "Baskakov, Egor"]
[Black "Ezat, Mohamed"]
[WhiteFideId "24197866"]
[BlackFideId "10600906"]
[WhiteElo "2792"]
[BlackElo "2514"]
[Result "1-0"]
[Round "03"]
[TimeControl "180+1"]
[Date "2022.11.09"]
[WhiteClock "0:00:19"]
[BlackClock "0:00:02"]

1. e4 {[%clk 0:03:00]}  e5 {[%clk 0:03:00]} 2. Nc3 {[%clk 0:03:00]}  Nf6 {[%clk 0:02:59]} 3. g3 {[%clk 0:03:00]}  d5 {[%clk 0:02:58]} 4. exd5 {[%clk 0:03:00]}  Nxd5 {[%clk 0:02:58]} 5. Bg2 {[%clk 0:03:01]}  Nxc3 {[%clk 0:02:58]} 6. bxc3 {[%clk 0:03:02]}  Bc5 {[%clk 0:02:55]} 7. d3 {[%clk 0:03:02]}  O-O {[%clk 0:02:53]} 8. Ne2 {[%clk 0:03:02]}  Nd7 {[%clk 0:02:49]} 9. O-O {[%clk 0:03:03]}  Nf6 {[%clk 0:02:49]} 10. h3 {[%clk 0:03:02]}  Be6 {[%clk 0:02:46]} 11. c4 {[%clk 0:03:01]}  c6 {[%clk 0:02:43]} 12. Be3 {[%clk 0:03:01]}  Qe7 {[%clk 0:02:40]} 13. Qd2 {[%clk 0:02:58]}  Rad8 {[%clk 0:02:37]} 14. Rab1 {[%clk 0:02:53]}  Rd7 {[%clk 0:02:36]} 15. Qa5 {[%clk 0:02:46]}  Bxe3 {[%clk 0:02:29]} 16. fxe3 {[%clk 0:02:45]}  e4 {[%clk 0:02:14]} 17. Nf4 {[%clk 0:02:33]}  a6 {[%clk 0:02:07]} 18. Qe5 {[%clk 0:02:12]}  Re8 {[%clk 0:02:00]} 19. Nxe6 {[%clk 0:01:58]}  Qxe6 {[%clk 0:01:58]} 20. Qxe6 {[%clk 0:01:57]}  Rxe6 {[%clk 0:01:58]} 21. d4 {[%clk 0:01:58]}  Re8 {[%clk 0:01:53]} 22. Rb6 {[%clk 0:01:55]}  Ree7 {[%clk 0:01:49]} 23. Rfb1 {[%clk 0:01:54]}  g6 {[%clk 0:01:48]} 24. Kf2 {[%clk 0:01:51]}  h5 {[%clk 0:01:46]} 25. a4 {[%clk 0:01:50]}  Rc7 {[%clk 0:01:42]} 26. c5 {[%clk 0:01:51]}  Nd5 {[%clk 0:01:39]} 27. R6b3 {[%clk 0:01:50]}  f5 {[%clk 0:01:37]} 28. c4 {[%clk 0:01:49]}  Nf6 {[%clk 0:01:37]} 29. h4 {[%clk 0:01:34]}  Red7 {[%clk 0:01:34]} 30. Bh3 {[%clk 0:01:31]}  Kg7 {[%clk 0:01:32]} 31. Ke2 {[%clk 0:01:30]}  Re7 {[%clk 0:01:30]} 32. Kd2 {[%clk 0:01:30]}  Red7 {[%clk 0:01:29]} 33. Kc3 {[%clk 0:01:30]}  Re7 {[%clk 0:01:29]} 34. Kb4 {[%clk 0:01:30]}  Red7 {[%clk 0:01:10]} 35. Ka5 {[%clk 0:01:29]}  Ng8 {[%clk 0:01:10]} 36. Kb6 {[%clk 0:01:26]}  Ne7 {[%clk 0:01:10]} 37. Ka5 {[%clk 0:01:16]}  Kf6 {[%clk 0:01:07]} 38. Bf1 {[%clk 0:01:15]}  Kg7 {[%clk 0:01:04]} 39. Be2 {[%clk 0:01:15]}  Kf6 {[%clk 0:01:04]} 40. Rd1 {[%clk 0:01:06]}  Kg7 {[%clk 0:01:03]} 41. Rb2 {[%clk 0:01:05]}  Kf6 {[%clk 0:01:01]} 42. Rbd2 {[%clk 0:00:58]}  Rc8 {[%clk 0:00:57]} 43. Rb1 {[%clk 0:00:55]}  Rcc7 {[%clk 0:00:57]} 44. Bd1 {[%clk 0:00:55]}  Rc8 {[%clk 0:00:55]} 45. Bb3 {[%clk 0:00:55]}  Rcd8 {[%clk 0:00:55]} 46. Rbd1 {[%clk 0:00:54]}  Rc8 {[%clk 0:00:52]} 47. Kb6 {[%clk 0:00:49]}  Rcd8 {[%clk 0:00:45]} 48. d5 {[%clk 0:00:48]}  Ke5 {[%clk 0:00:44]} 49. d6 {[%clk 0:00:47]}  Nc8+ {[%clk 0:00:44]} 50. Ka5 {[%clk 0:00:48]}  b6+ {[%clk 0:00:44]} 51. cxb6 {[%clk 0:00:48]}  Nxd6 {[%clk 0:00:34]} 52. Rxd6 {[%clk 0:00:28]}  Rxd6 {[%clk 0:00:33]} 53. Rxd6 {[%clk 0:00:29]}  Kxd6 {[%clk 0:00:33]} 54. Kxa6 {[%clk 0:00:29]}  Kc5 {[%clk 0:00:15]} 55. b7 {[%clk 0:00:20]}  Kb4 {[%clk 0:00:02]} 56. a5 {[%clk 0:00:19]}  Kxb3 {[%clk 0:00:02]} 57. Kb6 {[%clk 0:00:19]} 1-0


[Site "https://www.chess.com"]

[Event "Titled Tuesday Blitz November 08 Late 2022"]
[White "Bibilashvili, Lali"]
[Black "Zeman, Matyas"]
[WhiteFideId "13604236"]
[BlackFideId "364398"]
[WhiteElo "1819"]
[BlackElo "2254"]
[Result "0-1"]
[Round "03"]
[TimeControl "180+1"]
[Date "2022.11.09"]
[WhiteClock "0:00:18"]
[BlackClock "0:00:18"]

1. c4 {[%clk 0:03:00]}  e6 {[%clk 0:02:59]} 2. b3 {[%clk 0:02:59]}  d5 {[%clk 0:03:00]} 3. Bb2 {[%clk 0:02:58]}  Nf6 {[%clk 0:03:00]} 4. Nf3 {[%clk 0:02:57]}  Be7 {[%clk 0:03:00]} 5. g3 {[%clk 0:02:57]}  O-O {[%clk 0:03:00]} 6. Bg2 {[%clk 0:02:57]}  c5 {[%clk 0:02:59]} 7. O-O {[%clk 0:02:56]}  d4 {[%clk 0:02:56]} 8. a3 {[%clk 0:02:54]}  a5 {[%clk 0:02:55]} 9. d3 {[%clk 0:02:48]}  Nc6 {[%clk 0:02:54]} 10. Nbd2 {[%clk 0:02:48]}  e5 {[%clk 0:02:50]} 11. Ne1 {[%clk 0:02:44]}  Bf5 {[%clk 0:02:43]} 12. e4 {[%clk 0:02:43]}  dxe3 {[%clk 0:02:42]} 13. fxe3 {[%clk 0:02:41]}  Bxd3 {[%clk 0:02:40]} 14. Nxd3 {[%clk 0:02:40]}  Qxd3 {[%clk 0:02:41]} 15. Qe1 {[%clk 0:02:34]}  Ng4 {[%clk 0:02:31]} 16. e4 {[%clk 0:02:19]}  Ne3 {[%clk 0:02:22]} 17. Rf3 {[%clk 0:02:18]}  Nxg2 {[%clk 0:02:21]} 18. Kxg2 {[%clk 0:02:16]}  Qd7 {[%clk 0:02:19]} 19. Qe3 {[%clk 0:02:10]}  Nd4 {[%clk 0:02:14]} 20. Bxd4 {[%clk 0:02:08]}  cxd4 {[%clk 0:02:04]} 21. Qe2 {[%clk 0:02:05]}  f6 {[%clk 0:01:53]} 22. Rf5 {[%clk 0:02:04]}  g6 {[%clk 0:01:38]} 23. Rff1 {[%clk 0:02:01]}  Bd6 {[%clk 0:01:28]} 24. Nf3 {[%clk 0:01:47]}  Rae8 {[%clk 0:01:24]} 25. Qc2 {[%clk 0:01:44]}  f5 {[%clk 0:01:23]} 26. c5 {[%clk 0:01:43]}  Bc7 {[%clk 0:01:21]} 27. Qc4+ {[%clk 0:01:40]}  Kh8 {[%clk 0:01:18]} 28. Ng5 {[%clk 0:01:38]}  h6 {[%clk 0:00:59]} 29. Nf3 {[%clk 0:01:30]}  fxe4 {[%clk 0:00:58]} 30. Nh4 {[%clk 0:01:30]}  Kg7 {[%clk 0:00:56]} 31. Qe2 {[%clk 0:01:24]}  Qd5 {[%clk 0:00:53]} 32. Qg4 {[%clk 0:01:16]}  e3+ {[%clk 0:00:54]} 33. Kg1 {[%clk 0:01:13]}  Qc6 {[%clk 0:00:50]} 34. Nf5+ {[%clk 0:01:11]}  Kh7 {[%clk 0:00:50]} 35. Nh4 {[%clk 0:01:02]}  e4 {[%clk 0:00:40]} 36. b4 {[%clk 0:00:57]}  axb4 {[%clk 0:00:37]} 37. axb4 {[%clk 0:00:57]}  g5 {[%clk 0:00:31]} 38. Nf5 {[%clk 0:00:50]}  Qe6 {[%clk 0:00:31]} 39. Ra7 {[%clk 0:00:43]}  e2 {[%clk 0:00:30]} 40. Qxe2 {[%clk 0:00:39]}  Rxf5 {[%clk 0:00:29]} 41. Rxb7 {[%clk 0:00:38]}  Rxf1+ {[%clk 0:00:29]} 42. Qxf1 {[%clk 0:00:38]}  Re7 {[%clk 0:00:29]} 43. b5 {[%clk 0:00:37]}  Qd5 {[%clk 0:00:23]} 44. c6 {[%clk 0:00:32]}  e3 {[%clk 0:00:24]} 45. Qf8 {[%clk 0:00:31]}  Rf7 {[%clk 0:00:19]} 46. Qc8 {[%clk 0:00:26]}  e2 {[%clk 0:00:19]} 47. Qe8 {[%clk 0:00:18]}  Rf1# {[%clk 0:00:18]} 0-1


[Site "https://www.chess.com"]

[Event "Titled Tuesday Blitz November 08 Late 2022"]
[White "Bilan, Danila"]
[Black "Svane, Frederik"]
[WhiteFideId "24161918"]
[BlackFideId "12923044"]
[WhiteElo "2522"]
[BlackElo "2844"]
[Result "0-1"]
[Round "03"]
[TimeControl "180+1"]
[Date "2022.11.09"]
[WhiteClock "0:00:02"]
[BlackClock "0:01:30"]

1. d4 {[%clk 0:02:58]}  Nf6 {[%clk 0:02:55]} 2. Nf3 {[%clk 0:02:58]}  e6 {[%clk 0:02:56]} 3. g3 {[%clk 0:02:54]}  d5 {[%clk 0:02:53]} 4. Bg2 {[%clk 0:02:54]}  c5 {[%clk 0:02:52]} 5. c4 {[%clk 0:02:52]}  cxd4 {[%clk 0:02:52]} 6. Nxd4 {[%clk 0:02:48]}  e5 {[%clk 0:02:50]} 7. Nf3 {[%clk 0:02:37]}  d4 {[%clk 0:02:50]} 8. O-O {[%clk 0:02:31]}  Nc6 {[%clk 0:02:50]} 9. Bg5 {[%clk 0:02:18]}  Be7 {[%clk 0:02:44]} 10. Nbd2 {[%clk 0:02:11]}  O-O {[%clk 0:02:44]} 11. a3 {[%clk 0:01:46]}  a5 {[%clk 0:02:43]} 12. b4 {[%clk 0:01:27]}  axb4 {[%clk 0:02:40]} 13. axb4 {[%clk 0:01:27]}  Rxa1 {[%clk 0:02:40]} 14. Qxa1 {[%clk 0:01:28]}  Bxb4 {[%clk 0:02:41]} 15. Ne4 {[%clk 0:01:28]}  Be7 {[%clk 0:02:39]} 16. Bxf6 {[%clk 0:01:19]}  gxf6 {[%clk 0:02:34]} 17. e3 {[%clk 0:00:54]}  f5 {[%clk 0:02:26]} 18. Ned2 {[%clk 0:00:53]}  dxe3 {[%clk 0:02:22]} 19. fxe3 {[%clk 0:00:51]}  e4 {[%clk 0:02:23]} 20. Nd4 {[%clk 0:00:44]}  Bg5 {[%clk 0:02:23]} 21. Nxc6 {[%clk 0:00:06]}  Qxd2 {[%clk 0:02:22]} 22. Na7 {[%clk 0:00:03]}  Be6 {[%clk 0:02:12]} 23. Kh1 {[%clk 0:00:02]}  Rd8 {[%clk 0:01:48]} 24. Qa4 {[%clk 0:00:02]}  Ra8 {[%clk 0:01:30]} 0-1


[Site "https://www.chess.com"]

[Event "Titled Tuesday Blitz November 08 Late 2022"]
[White "Bogaudinov, Rushan"]
[Black "Papayan, Oleg"]
[WhiteFideId "4129288"]
[BlackFideId "4193911"]
[WhiteElo "1997"]
[BlackElo "2153"]
[Result "1-0"]
[Round "03"]
[TimeControl "180+1"]
[Date "2022.11.09"]
[WhiteClock "0:00:17"]
[BlackClock "0:00:04"]

1. e4 {[%clk 0:02:16]}  e5 {[%clk 0:02:50]} 2. Nc3 {[%clk 0:02:15]}  Nf6 {[%clk 0:02:49]} 3. g3 {[%clk 0:02:15]}  Nc6 {[%clk 0:02:48]} 4. Bg2 {[%clk 0:02:15]}  Bc5 {[%clk 0:02:48]} 5. d3 {[%clk 0:02:15]}  O-O {[%clk 0:02:48]} 6. h3 {[%clk 0:02:15]}  a6 {[%clk 0:02:40]} 7. Nge2 {[%clk 0:02:14]}  Nd4 {[%clk 0:02:25]} 8. O-O {[%clk 0:02:11]}  c6 {[%clk 0:02:23]} 9. Kh2 {[%clk 0:02:08]}  d5 {[%clk 0:02:18]} 10. f4 {[%clk 0:02:08]}  exf4 {[%clk 0:02:16]} 11. Nxf4 {[%clk 0:02:01]}  dxe4 {[%clk 0:02:14]} 12. dxe4 {[%clk 0:01:58]}  Ne6 {[%clk 0:02:08]} 13. Nd3 {[%clk 0:01:54]}  Bd4 {[%clk 0:02:02]} 14. Bd2 {[%clk 0:01:41]}  Re8 {[%clk 0:01:56]} 15. Qf3 {[%clk 0:01:37]}  Bxc3 {[%clk 0:01:36]} 16. Bxc3 {[%clk 0:01:37]}  Ng5 {[%clk 0:01:36]} 17. Qf4 {[%clk 0:01:33]}  Nh5 {[%clk 0:00:52]} 18. Qf2 {[%clk 0:01:27]}  Qe7 {[%clk 0:00:28]} 19. Rae1 {[%clk 0:01:18]}  Ne6 {[%clk 0:00:18]} 20. g4 {[%clk 0:01:03]}  Nf6 {[%clk 0:00:09]} 21. Bxf6 {[%clk 0:01:03]}  gxf6 {[%clk 0:00:10]} 22. Qxf6 {[%clk 0:00:56]}  Qxf6 {[%clk 0:00:11]} 23. Rxf6 {[%clk 0:00:56]}  Nd4 {[%clk 0:00:10]} 24. Rf2 {[%clk 0:00:52]}  Be6 {[%clk 0:00:09]} 25. Nc5 {[%clk 0:00:48]}  b6 {[%clk 0:00:06]} 26. Nxe6 {[%clk 0:00:46]}  Nxe6 {[%clk 0:00:07]} 27. e5 {[%clk 0:00:44]}  Rac8 {[%clk 0:00:07]} 28. Rd2 {[%clk 0:00:41]}  c5 {[%clk 0:00:07]} 29. Rd6 {[%clk 0:00:40]}  Rb8 {[%clk 0:00:04]} 30. c3 {[%clk 0:00:39]}  a5 {[%clk 0:00:04]} 31. Kg3 {[%clk 0:00:37]}  Kf8 {[%clk 0:00:04]} 32. Bd5 {[%clk 0:00:37]}  Nc7 {[%clk 0:00:02]} 33. Bc6 {[%clk 0:00:32]}  Re7 {[%clk 0:00:03]} 34. Kf4 {[%clk 0:00:30]}  Ne6+ {[%clk 0:00:03]} 35. Kf5 {[%clk 0:00:28]}  Ng7+ {[%clk 0:00:04]} 36. Kf6 {[%clk 0:00:26]}  Ne8+ {[%clk 0:00:03]} 37. Bxe8 {[%clk 0:00:26]}  Kxe8 {[%clk 0:00:03]} 38. e6 {[%clk 0:00:20]}  fxe6 {[%clk 0:00:02]} 39. Rexe6 {[%clk 0:00:20]}  Rxe6+ {[%clk 0:00:03]} 40. Rxe6+ {[%clk 0:00:20]}  Kf8 {[%clk 0:00:04]} 41. Rc6 {[%clk 0:00:19]}  a4 {[%clk 0:00:04]} 42. a3 {[%clk 0:00:19]}  Rb7 {[%clk 0:00:04]} 43. Rc8# {[%clk 0:00:17]} 1-0


[Site "https://www.chess.com"]

[Event "Titled Tuesday Blitz November 08 Late 2022"]
[White "Chernomordik, Pavel"]
[Black "Maze, Sebastien"]
[WhiteFideId "2804530"]
[BlackFideId "613762"]
[WhiteElo "2461"]
[BlackElo "2651"]
[Result "0-1"]
[Round "03"]
[TimeControl "180+1"]
[Date "2022.11.09"]
[WhiteClock "0:01:20"]
[BlackClock "0:00:38"]

1. e4 {[%clk 0:03:00]}  c5 {[%clk 0:02:55]} 2. Nc3 {[%clk 0:03:00]}  a6 {[%clk 0:02:54]} 3. g3 {[%clk 0:02:59]}  b5 {[%clk 0:02:53]} 4. Bg2 {[%clk 0:02:59]}  Bb7 {[%clk 0:02:54]} 5. f4 {[%clk 0:02:59]}  e6 {[%clk 0:02:49]} 6. Qe2 {[%clk 0:02:57]}  Nc6 {[%clk 0:02:46]} 7. d3 {[%clk 0:02:56]}  Nd4 {[%clk 0:02:46]} 8. Qf2 {[%clk 0:02:54]}  Ne7 {[%clk 0:02:34]} 9. Nf3 {[%clk 0:02:51]}  Nec6 {[%clk 0:02:33]} 10. O-O {[%clk 0:02:48]}  h5 {[%clk 0:02:26]} 11. f5 {[%clk 0:02:32]}  Nxf3+ {[%clk 0:02:11]} 12. Bxf3 {[%clk 0:02:26]}  Nd4 {[%clk 0:02:09]} 13. fxe6 {[%clk 0:02:20]}  dxe6 {[%clk 0:01:20]} 14. Bxh5 {[%clk 0:02:18]}  Kd7 {[%clk 0:01:18]} 15. Bxf7 {[%clk 0:02:09]}  Bd6 {[%clk 0:01:09]} 16. Be3 {[%clk 0:02:00]}  Be5 {[%clk 0:01:05]} 17. Ne2 {[%clk 0:01:46]}  Nxc2 {[%clk 0:01:01]} 18. Bxc5 {[%clk 0:01:42]}  Nxa1 {[%clk 0:00:58]} 19. Rxa1 {[%clk 0:01:39]}  Qf6 {[%clk 0:00:47]} 20. d4 {[%clk 0:01:31]}  Qxf2+ {[%clk 0:00:46]} 21. Kxf2 {[%clk 0:01:30]}  Rxh2+ {[%clk 0:00:45]} 22. Ke3 {[%clk 0:01:28]}  Bd6 {[%clk 0:00:42]} 23. Nf4 {[%clk 0:01:20]}  Bxf4+ {[%clk 0:00:40]} 24. Kxf4 {[%clk 0:01:20]}  Rf2+ {[%clk 0:00:38]} 0-1


[Site "https://www.chess.com"]